[Event "44th Chess Olympiad Women 2022"]
[Site "Chennai"]
[Date "2022.08.03"]
[Round "6.48"]
[White "Moshoboro Arona"]
[Black "Reifer-Belle, Chanon"]
[Result "1-0"]
[WhiteElo "1611"]
[BlackElo "1213"]
[Annotator "NA RC"]
[PlyCount "165"]
[EventDate "2022.??.??"]
[TimeControl "60"]

1. d4 {[%emt 0:00:02]} d5 {[%emt 0:00:07]} 2. Nf3 {[%emt 0:00:06]} c6 {[%emt 0:
00:00]} 3. e3 {[%emt 0:00:09]} Bf5 {[%emt 0:00:10]} 4. c4 {[%emt 0:00:25]} e6 {
[%emt 0:02:21]} 5. Nc3 {[%emt 0:00:30]} Nf6 {[%emt 0:00:35]} 6. Qb3 {[%emt 0:
00:00]} Qc7 {[%emt 0:03:54]} 7. Bd2 {[%emt 0:03:12]} Be7 {[%emt 0:01:18]} 8.
Rc1 {[%emt 0:04:11]} Qb6 {[%emt 0:03:29]} 9. c5 {[%emt 0:02:49]} Qxb3 {[%emt 0:
00:00]} 10. axb3 {[%emt 0:00:08]} Nbd7 {[%emt 0:01:47]} 11. Be2 {[%emt 0:11:16]
} O-O {[%emt 0:04:49]} 12. O-O {[%emt 0:00:19]} b6 {[%emt 0:04:49]} 13. b4 {
[%emt 0:07:50]} bxc5 {[%emt 0:05:21]} 14. bxc5 {[%emt 0:00:30]} Rfb8 {[%emt 0:
00:00]} 15. Nd1 {[%emt 0:11:42]} Ne4 {[%emt 0:03:49]} 16. Ba5 {[%emt 0:03:09]}
Bd8 {[%emt 0:06:37]} 17. Bxd8 {[%emt 0:08:55]} Rxd8 {[%emt 0:00:05]} 18. Ra1 {
[%emt 0:06:50]} a5 {[%emt 0:08:54]} 19. Re1 {[%emt 0:05:08]} e5 {[%emt 0:06:29]
} 20. Bd3 {[%emt 0:05:23]} Be6 {[%emt 0:09:39]} 21. Bxe4 {[%emt 0:11:12]} dxe4
{[%emt 0:00:35]} 22. Ng5 {[%emt 0:01:24]} Bd5 {[%emt 0:08:08]} 23. Nc3 {
[%emt 0:00:18]} Rdb8 {[%emt 0:02:04]} 24. Nxd5 {[%emt 0:01:01]} cxd5 {[%emt 0:
00:00]} 25. Ra2 {[%emt 0:01:37]} Rb4 {[%emt 0:03:06]} 26. Rd1 {[%emt 0:01:10]}
exd4 {[%emt 0:01:14]} 27. exd4 {[%emt 0:00:20]} Nb8 {[%emt 0:00:48]} 28. Nh3 {
[%emt 0:01:30]} Nc6 {[%emt 0:01:17]} 29. Nf4 {[%emt 0:00:31]} Rxd4 {[%emt 0:00:
00]} 30. Rxd4 {[%emt 0:00:06]} Nxd4 {[%emt 0:00:06]} 31. Nxd5 {[%emt 0:00:11]}
Nc6 {[%emt 0:02:15]} 32. Kf1 {[%emt 0:00:29]} Rd8 {[%emt 0:01:40]} 33. Ne3 {
[%emt 0:02:11]} g6 {[%emt 0:02:06]} 34. g4 {[%emt 0:00:23]} Rb8 {[%emt 0:01:12]
} 35. Nd5 {[%emt 0:01:47]} Kg7 {[%emt 0:01:31]} 36. g5 {[%emt 0:01:15]} Rb5 {
[%emt 0:01:02]} 37. Nc3 {[%emt 0:01:43]} Rxc5 {[%emt 0:00:48]} 38. Nxe4 {
[%emt 0:00:02]} Rc1+ {[%emt 0:00:46]} 39. Kg2 {[%emt 0:00:44]} Rc4 {[%emt 0:00:
00]} 40. f3 {[%emt 0:03:01]} Rc2+ {[%emt 0:05:04]} 41. Kg3 {[%emt 0:30:20]} Nd4
{[%emt 0:31:35]} 42. Rxa5 {[%emt 0:01:30]} Nf5+ {[%emt 0:00:54]} 43. Kh3 {
[%emt 0:01:36]} Rxb2 {[%emt 0:00:36]} 44. Ra8 {[%emt 0:00:44]} Ne7 {[%emt 0:00:
00]} 45. Ra7 {[%emt 0:02:24]} Nf5 {[%emt 0:00:35]} 46. Ra8 {[%emt 0:00:09]} Ne7
{[%emt 0:00:26]} 47. Re8 {[%emt 0:00:08]} Rb7 {[%emt 0:01:44]} 48. Kg3 {
[%emt 0:00:00]} Ng8 {[%emt 0:00:00]} 49. h4 {[%emt 0:00:00]} f5 {[%emt 0:00:00]
} 50. Nd6 {[%emt 0:00:00]} Re7 {[%emt 0:00:00]} 51. Rd8 {[%emt 0:00:00]} Ra7 {
[%emt 0:00:00]} 52. h5 {[%emt 0:00:00]} gxh5 {[%emt 0:00:00]} 53. Nxf5+ {
[%emt 0:00:00]} Kg6 {[%emt 0:00:00]} 54. Rxg8+ {[%emt 0:00:00]} Kxf5 {[%emt 0:
00:00]} 55. Kh4 {[%emt 0:00:00]} Ra1 {[%emt 0:00:00]} 56. Rf8+ {[%emt 0:00:00]}
Kg6 {[%emt 0:00:00]} 57. Rf6+ {[%emt 0:00:00]} Kg7 {[%emt 0:00:00]} 58. Kxh5 {
[%emt 0:00:00]} Rh1+ {[%emt 0:00:00]} 59. Kg4 {[%emt 0:00:00]} Rg1+ {[%emt 0:
00:00]} 60. Kf5 {[%emt 0:00:00]} Ra1 {[%emt 0:00:00]} 61. f4 {[%emt 0:00:00]}
Ra5+ {[%emt 0:00:00]} 62. Kg4 {[%emt 0:00:00]} Ra1 {[%emt 0:00:00]} 63. Rb6 {
[%emt 0:00:00]} Ra4 {[%emt 0:00:00]} 64. Re6 {[%emt 0:00:00]} Kf7 {[%emt 0:00:
00]} 65. Rf6+ {[%emt 0:00:00]} Kg7 {[%emt 0:00:00]} 66. Kh5 {[%emt 0:00:00]}
Ra1 {[%emt 0:00:00]} 67. Rb6 {[%emt 0:00:00]} Rf1 {[%emt 0:00:27]} 68. Rb7+ {
[%emt 0:00:00]} Kg8 {[%emt 0:00:19]} 69. Kg4 {[%emt 0:00:00]} Rg1+ {[%emt 0:00:
00]} 70. Kf5 {[%emt 0:00:00]} Ra1 {[%emt 0:00:29]} 71. Re7 {[%emt 0:00:00]}
Ra5+ {[%emt 0:00:39]} 72. Kf6 {[%emt 0:00:00]} Ra8 {[%emt 0:01:32]} 73. f5 {
[%emt 0:00:00]} Ra6+ {[%emt 0:00:46]} 74. Re6 {[%emt 0:00:00]} Ra8 {[%emt 0:00:
00]} 75. Ke5 {[%emt 0:03:35]} Ra5+ {[%emt 0:00:38]} 76. Kf4 {[%emt 0:00:19]}
Ra4+ {[%emt 0:00:53]} 77. Kg3 {[%emt 0:00:18]} Ra3+ {[%emt 0:01:45]} 78. Kh4 {
[%emt 0:00:12]} Ra1 {[%emt 0:01:41]} 79. f6 {[%emt 0:02:44]} Kf7 {[%emt 0:00:
00]} 80. Re7+ {[%emt 0:00:21]} Kg6 {[%emt 0:00:51]} 81. Rg7+ {[%emt 0:01:32]}
Kf5 {[%emt 0:00:14]} 82. f7 {[%emt 0:00:12]} Ra4+ {[%emt 0:02:14]} 83. Kh5 {
[%emt 0:00:20]} 1-0

[Event "44th Chess Olympiad Women 2022"]
[Site "Chennai"]
[Date "2022.08.03"]
[Round "6.49"]
[White "Garcia, Andrea Nicole"]
[Black "Natareno, Elvia"]
[Result "1/2-1/2"]
[WhiteElo "1631"]
[BlackElo "1581"]
[Annotator "NA RC"]
[PlyCount "69"]
[EventDate "2022.??.??"]
[TimeControl "60"]

1. e4 {[%emt 0:00:03]} c5 {[%emt 0:00:18]} 2. Nc3 {[%emt 0:00:06]} Nc6 {
[%emt 0:00:27]} 3. g3 {[%emt 0:00:06]} g6 {[%emt 0:00:07]} 4. Bg2 {[%emt 0:00:
00]} Bg7 {[%emt 0:00:07]} 5. d3 {[%emt 0:00:05]} d6 {[%emt 0:00:26]} 6. Be3 {
[%emt 0:00:12]} Nf6 {[%emt 0:01:30]} 7. h3 {[%emt 0:00:37]} a6 {[%emt 0:01:02]}
8. Qd2 {[%emt 0:00:25]} Bd7 {[%emt 0:01:08]} 9. Bh6 {[%emt 0:00:39]} O-O {
[%emt 0:01:00]} 10. Bxg7 {[%emt 0:09:45]} Kxg7 {[%emt 0:04:11]} 11. Nge2 {
[%emt 0:00:15]} b5 {[%emt 0:01:50]} 12. Nd5 {[%emt 0:15:10]} e6 {[%emt 0:01:03]
} 13. Nxf6 {[%emt 0:02:16]} Qxf6 {[%emt 0:00:45]} 14. c3 {[%emt 0:01:28]} Rad8
{[%emt 0:07:24]} 15. f4 {[%emt 0:05:12]} e5 {[%emt 0:02:47]} 16. O-O {[%emt 0:
00:00]} Qe7 {[%emt 0:06:34]} 17. f5 {[%emt 0:02:21]} f6 {[%emt 0:00:13]} 18. g4
{[%emt 0:02:58]} g5 {[%emt 0:00:46]} 19. h4 {[%emt 0:14:52]} h6 {[%emt 0:00:45]
} 20. h5 {[%emt 0:00:22]} Be8 {[%emt 0:00:11]} 21. Rfd1 {[%emt 0:01:15]} Bf7 {
[%emt 0:03:54]} 22. b3 {[%emt 0:07:05]} d5 {[%emt 0:00:19]} 23. Qb2 {[%emt 0:
00:00]} Rd7 {[%emt 0:01:35]} 24. Rd2 {[%emt 0:02:09]} Rfd8 {[%emt 0:05:44]} 25.
Rad1 {[%emt 0:00:35]} d4 {[%emt 0:00:52]} 26. c4 {[%emt 0:05:04]} b4 {[%emt 0:
00:00]} 27. Ra1 {[%emt 0:00:47]} a5 {[%emt 0:05:10]} 28. Rdd1 {[%emt 0:02:23]}
Ra7 {[%emt 0:00:19]} 29. Rdb1 {[%emt 0:01:01]} a4 {[%emt 0:00:53]} 30. Nc1 {
[%emt 0:00:25]} Rda8 {[%emt 0:07:46]} 31. Bf3 {[%emt 0:03:10]} Ra6 {[%emt 0:00:
00]} 32. Bd1 {[%emt 0:01:36]} R6a7 {[%emt 0:00:54]} 33. Bf3 {[%emt 0:01:59]}
Be8 {[%emt 0:00:06]} 34. Bd1 {[%emt 0:00:08]} Nd8 {[%emt 0:00:04]} 35. Ne2 {
[%emt 0:00:38]} 1/2-1/2

[Event "44th Chess Olympiad Women 2022"]
[Site "Chennai"]
[Date "2022.08.03"]
[Round "6.49"]
[White "Godoy Yolanda"]
[Black "Mazariegos, Silvia Carolina"]
[Result "0-1"]
[WhiteElo "1219"]
[BlackElo "1851"]
[Annotator "NA RC"]
[PlyCount "74"]
[EventDate "2022.??.??"]
[TimeControl "60"]

1. e4 {[%emt 0:00:08]} Nf6 {[%emt 0:00:04]} 2. Nc3 {[%emt 0:00:17]} d5 {
[%emt 0:00:07]} 3. exd5 {[%emt 0:07:28]} Nxd5 {[%emt 0:01:12]} 4. Bc4 {[%emt 0:
00:00]} Be6 {[%emt 0:00:34]} 5. d3 {[%emt 0:00:30]} Nxc3 {[%emt 0:00:53]} 6.
bxc3 {[%emt 0:01:43]} Bxc4 {[%emt 0:00:16]} 7. Nf3 {[%emt 0:12:19]} Bd5 {
[%emt 0:00:54]} 8. O-O {[%emt 0:05:57]} e6 {[%emt 0:01:14]} 9. Qe2 {[%emt 0:00:
00]} Be7 {[%emt 0:00:50]} 10. Bb2 {[%emt 0:03:29]} Bxf3 {[%emt 0:08:49]} 11.
Qxf3 {[%emt 0:00:40]} c6 {[%emt 0:00:03]} 12. c4 {[%emt 0:02:32]} Bf6 {[%emt 0:
00:00]} 13. c3 {[%emt 0:03:09]} Nd7 {[%emt 0:03:35]} 14. d4 {[%emt 0:01:21]}
Nb6 {[%emt 0:01:14]} 15. Bc1 {[%emt 0:09:07]} Nxc4 {[%emt 0:02:04]} 16. Bf4 {
[%emt 0:05:40]} Qd5 {[%emt 0:02:42]} 17. Qg3 {[%emt 0:06:20]} O-O {[%emt 0:00:
00]} 18. Rfe1 {[%emt 0:00:34]} Rfe8 {[%emt 0:01:17]} 19. Re2 {[%emt 0:00:40]}
Rad8 {[%emt 0:03:36]} 20. Rd1 {[%emt 0:03:30]} b5 {[%emt 0:10:30]} 21. Rb1 {
[%emt 0:10:53]} a6 {[%emt 0:02:12]} 22. a4 {[%emt 0:04:37]} h6 {[%emt 0:09:25]}
23. Bxh6 {[%emt 0:00:36]} Qh5 {[%emt 0:00:08]} 24. Bf4 {[%emt 0:01:36]} Qxe2 {
[%emt 0:00:36]} 25. axb5 {[%emt 0:03:25]} axb5 {[%emt 0:00:26]} 26. Ra1 {
[%emt 0:01:19]} Ra8 {[%emt 0:00:17]} 27. Rc1 {[%emt 0:03:06]} Ra2 {[%emt 0:00:
00]} 28. Be3 {[%emt 0:01:43]} Rea8 {[%emt 0:01:06]} 29. h3 {[%emt 0:01:19]}
Nxe3 {[%emt 0:00:25]} 30. fxe3 {[%emt 0:00:45]} Bh4 {[%emt 0:00:11]} 31. Qf3 {
[%emt 0:01:36]} Bf2+ {[%emt 0:00:31]} 32. Kh2 {[%emt 0:00:39]} Qxf3 {[%emt 0:
00:00]} 33. gxf3 {[%emt 0:00:15]} Bxe3+ {[%emt 0:00:08]} 34. Kg3 {[%emt 0:00:
00]} Bxc1 {[%emt 0:00:28]} 35. h4 {[%emt 0:00:21]} Rc2 {[%emt 0:00:08]} 36. Kg4
{[%emt 0:00:15]} Rg2+ {[%emt 0:00:11]} 37. Kh5 {[%emt 0:00:32]} g6# {[%emt 0:
00:00]} 0-1

[Event "44th Chess Olympiad Women 2022"]
[Site "Chennai"]
[Date "2022.08.03"]
[Round "6.49"]
[White "Juarez Garcia, Daniela"]
[Black "Viana, Valeria"]
[Result "1/2-1/2"]
[WhiteElo "1725"]
[BlackElo "1441"]
[Annotator "NA RC"]
[PlyCount "132"]
[EventDate "2022.??.??"]
[TimeControl "60"]

1. e4 {[%emt 0:00:02]} c6 {[%emt 0:00:08]} 2. d4 {[%emt 0:00:30]} d5 {[%emt 0:
00:00]} 3. exd5 {[%emt 0:00:50]} cxd5 {[%emt 0:00:11]} 4. Bd3 {[%emt 0:00:25]}
Nc6 {[%emt 0:00:23]} 5. c3 {[%emt 0:00:25]} Nf6 {[%emt 0:00:41]} 6. h3 {
[%emt 0:00:40]} Qc7 {[%emt 0:01:58]} 7. Nf3 {[%emt 0:00:28]} g6 {[%emt 0:01:03]
} 8. Qc2 {[%emt 0:00:43]} Bg7 {[%emt 0:01:00]} 9. O-O {[%emt 0:00:13]} O-O {
[%emt 0:00:58]} 10. Re1 {[%emt 0:00:21]} e6 {[%emt 0:00:52]} 11. Be3 {[%emt 0:
00:00]} e5 {[%emt 0:14:12]} 12. dxe5 {[%emt 0:01:05]} Nxe5 {[%emt 0:00:35]} 13.
Nxe5 {[%emt 0:01:03]} Qxe5 {[%emt 0:03:53]} 14. Nd2 {[%emt 0:00:57]} Qc7 {
[%emt 0:04:09]} 15. Nf3 {[%emt 0:02:13]} a6 {[%emt 0:03:15]} 16. a4 {[%emt 0:
00:00]} Bd7 {[%emt 0:03:40]} 17. Bd4 {[%emt 0:02:46]} Rfe8 {[%emt 0:04:06]} 18.
Be5 {[%emt 0:06:14]} Qd8 {[%emt 0:06:09]} 19. Rad1 {[%emt 0:06:23]} b5 {
[%emt 0:06:21]} 20. axb5 {[%emt 0:02:04]} Bxb5 {[%emt 0:01:00]} 21. Bxb5 {
[%emt 0:01:05]} axb5 {[%emt 0:01:58]} 22. Qd3 {[%emt 0:02:09]} Qd7 {[%emt 0:00:
00]} 23. Nd4 {[%emt 0:04:37]} Ra2 {[%emt 0:06:12]} 24. Re2 {[%emt 0:07:57]} b4
{[%emt 0:07:46]} 25. cxb4 {[%emt 0:01:11]} Qa4 {[%emt 0:01:36]} 26. b5 {
[%emt 0:02:58]} Qc4 {[%emt 0:04:45]} 27. Nc6 {[%emt 0:13:24]} Nh5 {[%emt 0:00:
00]} 28. Qxc4 {[%emt 0:06:17]} dxc4 {[%emt 0:00:16]} 29. Rdd2 {[%emt 0:02:54]}
Bh6 {[%emt 0:05:40]} 30. Rc2 {[%emt 0:02:09]} Nf4 {[%emt 0:01:49]} 31. Bxf4 {
[%emt 0:02:20]} Ra1+ {[%emt 0:01:33]} 32. Kh2 {[%emt 0:00:20]} Bxf4+ {[%emt 0:
00:00]} 33. g3 {[%emt 0:00:06]} Rxe2 {[%emt 0:00:43]} 34. Rxe2 {[%emt 0:00:09]}
Bd6 {[%emt 0:00:43]} 35. Rc2 {[%emt 0:01:29]} Ra2 {[%emt 0:00:54]} 36. Kg2 {
[%emt 0:03:02]} c3 {[%emt 0:01:01]} 37. Rxc3 {[%emt 0:00:20]} Rxb2 {[%emt 0:00:
00]} 38. Na7 {[%emt 0:01:06]} Kg7 {[%emt 0:00:29]} 39. Rc8 {[%emt 0:02:33]} Be5
{[%emt 0:00:45]} 40. Rc4 {[%emt 0:00:41]} Bb8 {[%emt 0:00:25]} 41. Nc6 {
[%emt 0:31:10]} Rxb5 {[%emt 0:30:20]} 42. Nxb8 {[%emt 0:00:05]} Rxb8 {[%emt 0:
00:00]} 43. g4 {[%emt 0:00:03]} Rb3 {[%emt 0:00:20]} 44. f3 {[%emt 0:00:14]}
Kf6 {[%emt 0:03:08]} 45. Kg3 {[%emt 0:00:20]} Rb5 {[%emt 0:00:12]} 46. h4 {
[%emt 0:01:14]} h6 {[%emt 0:00:49]} 47. Re4 {[%emt 0:01:26]} Rb1 {[%emt 0:00:
00]} 48. Re3 {[%emt 0:02:06]} Rh1 {[%emt 0:00:48]} 49. Rb3 {[%emt 0:02:11]} g5
{[%emt 0:00:00]} 50. h5 {[%emt 0:00:00]} Rg1+ {[%emt 0:00:00]} 51. Kf2 {
[%emt 0:00:00]} Ra1 {[%emt 0:00:00]} 52. Rb6+ {[%emt 0:00:00]} Kg7 {[%emt 0:00:
00]} 53. Rb5 {[%emt 0:00:00]} Ra6 {[%emt 0:00:00]} 54. Rd5 {[%emt 0:00:00]} Re6
{[%emt 0:00:00]} 55. Rf5 {[%emt 0:00:00]} Ra6 {[%emt 0:00:00]} 56. Ke3 {
[%emt 0:00:00]} Ra4 {[%emt 0:00:00]} 57. Rd5 {[%emt 0:00:00]} Rf4 {[%emt 0:00:
00]} 58. Rd4 {[%emt 0:00:00]} Rf6 {[%emt 0:00:00]} 59. f4 {[%emt 0:00:00]}
gxf4+ {[%emt 0:00:00]} 60. Rxf4 {[%emt 0:00:00]} Rxf4 {[%emt 0:00:00]} 61. Kxf4
{[%emt 0:00:00]} Kf6 {[%emt 0:00:00]} 62. g5+ {[%emt 0:00:00]} hxg5+ {[%emt 0:
00:00]} 63. Kg4 {[%emt 0:00:00]} Kg7 {[%emt 0:00:00]} 64. Kxg5 {[%emt 0:00:00]}
f6+ {[%emt 0:00:00]} 65. Kf5 {[%emt 0:00:00]} Kh6 {[%emt 0:00:00]} 66. Kxf6 {
[%emt 0:00:00]} Kxh5 {[%emt 0:00:00]} 1/2-1/2

[Event "44th Chess Olympiad Women 2022"]
[Site "Chennai"]
[Date "2022.08.03"]
[Round "6.49"]
[White "Lopez L., Dairyn D."]
[Black "Maradiaga, Cesia"]
[Result "1/2-1/2"]
[WhiteElo "1574"]
[BlackElo "1533"]
[Annotator "NA RC"]
[PlyCount "73"]
[EventDate "2022.??.??"]
[TimeControl "60"]

1. d4 {[%emt 0:00:25]} d5 {[%emt 0:00:10]} 2. Bf4 {[%emt 0:00:07]} Nf6 {
[%emt 0:00:38]} 3. e3 {[%emt 0:00:07]} c5 {[%emt 0:01:37]} 4. c3 {[%emt 0:00:
00]} Nc6 {[%emt 0:01:19]} 5. h3 {[%emt 0:00:16]} Qb6 {[%emt 0:00:26]} 6. Qb3 {
[%emt 0:01:31]} c4 {[%emt 0:00:28]} 7. Qxb6 {[%emt 0:05:12]} axb6 {[%emt 0:00:
00]} 8. Nf3 {[%emt 0:00:07]} Na5 {[%emt 0:03:45]} 9. Nbd2 {[%emt 0:00:13]} Bf5
{[%emt 0:01:41]} 10. Be2 {[%emt 0:00:59]} e6 {[%emt 0:08:05]} 11. O-O {[%emt 0:
00:00]} Be7 {[%emt 0:01:01]} 12. g4 {[%emt 0:02:40]} Bg6 {[%emt 0:00:42]} 13.
Ne5 {[%emt 0:02:01]} O-O {[%emt 0:06:30]} 14. f3 {[%emt 0:11:42]} b5 {[%emt 0:
00:00]} 15. Nxg6 {[%emt 0:04:41]} fxg6 {[%emt 0:00:38]} 16. a3 {[%emt 0:09:40]}
Nc6 {[%emt 0:02:36]} 17. Kg2 {[%emt 0:01:17]} Nd7 {[%emt 0:01:39]} 18. Bg3 {
[%emt 0:02:16]} e5 {[%emt 0:09:25]} 19. Bd1 {[%emt 0:00:52]} exd4 {[%emt 0:00:
00]} 20. exd4 {[%emt 0:00:08]} Bf6 {[%emt 0:00:29]} 21. Bc2 {[%emt 0:00:20]}
Rfe8 {[%emt 0:01:12]} 22. Rfe1 {[%emt 0:03:01]} Rxe1 {[%emt 0:00:23]} 23. Rxe1
{[%emt 0:00:20]} Nb6 {[%emt 0:01:18]} 24. Bd6 {[%emt 0:04:07]} Na4 {[%emt 0:00:
00]} 25. Bxa4 {[%emt 0:06:08]} bxa4 {[%emt 0:01:05]} 26. f4 {[%emt 0:04:08]}
Kf7 {[%emt 0:02:55]} 27. Nf3 {[%emt 0:14:44]} h6 {[%emt 0:10:42]} 28. h4 {
[%emt 0:12:02]} Be7 {[%emt 0:05:30]} 29. Bxe7 {[%emt 0:02:03]} Nxe7 {[%emt 0:
00:00]} 30. Ne5+ {[%emt 0:01:44]} Kf8 {[%emt 0:02:04]} 31. Nd7+ {[%emt 0:02:25]
} Kf7 {[%emt 0:02:24]} 32. Ne5+ {[%emt 0:00:23]} Kg8 {[%emt 0:01:07]} 33. Kg3 {
[%emt 0:01:43]} h5 {[%emt 0:00:34]} 34. Rg1 {[%emt 0:03:02]} Rf8 {[%emt 0:00:
00]} 35. Rf1 {[%emt 0:00:44]} hxg4 {[%emt 0:00:22]} 36. Kxg4 {[%emt 0:01:57]}
Nf5 {[%emt 0:01:51]} 37. Rf3 {[%emt 0:00:23]} 1/2-1/2

[Event "44th Chess Olympiad Women 2022"]
[Site "Chennai"]
[Date "2022.08.03"]
[Round "6.50"]
[White "Bagga, Khushi"]
[Black "Mefteh, Meyssem"]
[Result "0-1"]
[WhiteElo "1328"]
[BlackElo "1254"]
[Annotator "NA RC"]
[PlyCount "134"]
[EventDate "2022.??.??"]
[TimeControl "60"]

1. e4 {[%emt 0:00:01]} c5 {[%emt 0:00:01]} 2. d4 {[%emt 0:00:11]} cxd4 {
[%emt 0:00:10]} 3. c3 {[%emt 0:00:05]} Nf6 {[%emt 0:00:15]} 4. e5 {[%emt 0:00:
00]} Nd5 {[%emt 0:00:33]} 5. cxd4 {[%emt 0:00:20]} Nc6 {[%emt 0:02:45]} 6. Bc4
{[%emt 0:00:42]} Nb6 {[%emt 0:08:38]} 7. Bb3 {[%emt 0:02:17]} d6 {[%emt 0:00:
00]} 8. exd6 {[%emt 0:10:31]} Qxd6 {[%emt 0:00:08]} 9. Nf3 {[%emt 0:01:10]} Bg4
{[%emt 0:05:54]} 10. Bxf7+ {[%emt 0:04:17]} Kxf7 {[%emt 0:07:41]} 11. Ng5+ {
[%emt 0:01:43]} Ke8 {[%emt 0:00:55]} 12. Qxg4 {[%emt 0:01:35]} Nxd4 {[%emt 0:
00:00]} 13. Na3 {[%emt 0:02:40]} Qb4+ {[%emt 0:06:10]} 14. Kf1 {[%emt 0:04:42]}
Rc8 {[%emt 0:09:57]} 15. Be3 {[%emt 0:12:49]} Nc2 {[%emt 0:15:11]} 16. Qxb4 {
[%emt 0:03:28]} Nxb4 {[%emt 0:00:04]} 17. g3 {[%emt 0:03:46]} Nc2 {[%emt 0:00:
00]} 18. Nxc2 {[%emt 0:02:31]} Rxc2 {[%emt 0:00:01]} 19. Bd4 {[%emt 0:02:15]}
Nd7 {[%emt 0:04:56]} 20. Kg2 {[%emt 0:01:40]} b6 {[%emt 0:03:38]} 21. Rac1 {
[%emt 0:02:29]} Rxc1 {[%emt 0:00:31]} 22. Rxc1 {[%emt 0:00:07]} e5 {[%emt 0:00:
00]} 23. Bc3 {[%emt 0:01:17]} a5 {[%emt 0:04:06]} 24. Nf3 {[%emt 0:01:08]} Bc5
{[%emt 0:08:10]} 25. Nxe5 {[%emt 0:02:03]} Nxe5 {[%emt 0:00:39]} 26. Bxe5 {
[%emt 0:00:06]} Rf8 {[%emt 0:01:29]} 27. Rc2 {[%emt 0:01:52]} g6 {[%emt 0:00:
00]} 28. Rd2 {[%emt 0:01:57]} Rf5 {[%emt 0:03:01]} 29. Bd6 {[%emt 0:04:53]}
Bxd6 {[%emt 0:00:28]} 30. Rxd6 {[%emt 0:00:07]} Rb5 {[%emt 0:00:04]} 31. b3 {
[%emt 0:01:04]} Ke7 {[%emt 0:00:38]} 32. Rc6 {[%emt 0:01:18]} Kd7 {[%emt 0:00:
00]} 33. Rc3 {[%emt 0:01:12]} Rf5 {[%emt 0:02:51]} 34. Rf3 {[%emt 0:02:12]} Rh5
{[%emt 0:03:05]} 35. Rf6 {[%emt 0:03:03]} b5 {[%emt 0:00:37]} 36. h3 {[%emt 0:
00:00]} Ke7 {[%emt 0:00:46]} 37. Rc6 {[%emt 0:01:31]} Kf7 {[%emt 0:00:33]} 38.
g4 {[%emt 0:00:50]} Rg5 {[%emt 0:00:21]} 39. Kg3 {[%emt 0:00:33]} Rd5 {[%emt 0:
00:00]} 40. Rc3 {[%emt 0:03:56]} b4 {[%emt 0:00:33]} 41. Rc2 {[%emt 0:30:33]}
Rd3+ {[%emt 0:30:34]} 42. f3 {[%emt 0:00:18]} Rc3 {[%emt 0:00:22]} 43. Rd2 {
[%emt 0:00:40]} Rc5 {[%emt 0:00:24]} 44. Kh4 {[%emt 0:03:27]} Ke7 {[%emt 0:00:
00]} 45. f4 {[%emt 0:00:00]} Kf7 {[%emt 0:00:00]} 46. g5 {[%emt 0:00:00]} Ke7 {
[%emt 0:00:00]} 47. Kg4 {[%emt 0:00:00]} Rf5 {[%emt 0:00:00]} 48. Rf2 {[%emt 0:
00:00]} Ke6 {[%emt 0:00:00]} 49. h4 {[%emt 0:00:00]} Kd5 {[%emt 0:00:00]} 50.
h5 {[%emt 0:00:00]} Ke6 {[%emt 0:00:00]} 51. h6 {[%emt 0:00:00]} Kf7 {[%emt 0:
00:00]} 52. Kf3 {[%emt 0:00:00]} Rd5 {[%emt 0:01:51]} 53. Ke4 {[%emt 0:00:00]}
Rd1 {[%emt 0:00:27]} 54. f5 {[%emt 0:00:00]} Rg1 {[%emt 0:00:47]} 55. fxg6+ {
[%emt 0:00:00]} Kxg6 {[%emt 0:00:29]} 56. Rf8 {[%emt 0:00:00]} Rxg5 {[%emt 0:
00:00]} 57. Rg8+ {[%emt 0:00:00]} Kxh6 {[%emt 0:00:12]} 58. Rxg5 {[%emt 0:00:
00]} Kxg5 {[%emt 0:00:02]} 59. Ke3 {[%emt 0:00:00]} Kg4 {[%emt 0:00:18]} 60.
Kf2 {[%emt 0:01:08]} h5 {[%emt 0:00:07]} 61. Kg2 {[%emt 0:00:37]} h4 {[%emt 0:
00:00]} 62. Kh2 {[%emt 0:00:09]} h3 {[%emt 0:00:06]} 63. Kg1 {[%emt 0:00:15]}
Kg3 {[%emt 0:00:09]} 64. Kh1 {[%emt 0:00:58]} h2 {[%emt 0:00:07]} 65. a4 {
[%emt 0:00:11]} bxa3 {[%emt 0:00:07]} 66. b4 {[%emt 0:00:17]} a2 {[%emt 0:00:
00]} 67. bxa5 {[%emt 0:00:20]} a1=Q# {[%emt 0:00:44]} 0-1